fUST/lending_fUST_20250302
["ID","MTS","AMOUNT","RATE_DAILY","PERIOD"]
[355057723,1740884847116,-315.94902676,0.00022654,2]
[355057724,1740884848112,-2713.86859189,0.00022654,2]
[355057725,1740884853089,-1866.02761256,0.00022654,2]
[355057726,1740884945109,-300.0,0.00022653,2]
[355057727,1740884945134,-16786.48170735,0.00022654,2]
[355057728,1740884948101,-2963.90593128,0.00022654,2]
[355057729,1740884973686,-317.97746495,0.00023,2]
[355057730,1740884973707,-759.95250642,0.00023105,2]
[355057731,1740884973729,-216.7106,0.00023138,2]
[355058167,1740885038416,-581.1039903,0.00023538,2]
[355058168,1740885038426,-289.28,0.0002362,3]
[355058169,1740885038435,-300.0,0.00023629,2]
[355058171,1740885038446,-152.0163705,0.00023629,2]
[355058172,1740885038455,-510.80750674,0.00023629,2]
[355058174,1740885038466,-500.0,0.00023629,2]
[355058176,1740885038475,-500.0,0.00023629,2]
[355058178,1740885038486,-500.0,0.00023629,2]
[355058180,1740885038496,-500.0,0.00023629,2]
[355058182,1740885038506,-178.73332021,0.00023629,2]
[355058183,1740885038516,-415643.2128466,0.0002363,7]
[355058184,1740885038528,-529.53240311,0.00023638,2]
[355058185,1740885038538,-600.37934138,0.00023638,2]
[355058186,1740885038548,-505.27436091,0.00023639,2]
[355058188,1740885038558,-500.0,0.00023639,2]
[355058190,1740885038568,-766.13,0.00023639,2]
[355058192,1740885038578,-500.0,0.00023639,2]
[355058194,1740885038588,-1182.78,0.00023639,2]
[355058196,1740885038598,-500.0,0.00023639,2]
[355058197,1740885038608,-500.0,0.00023639,2]
[355058198,1740885038618,-500.0,0.00023639,2]
[355058199,1740885038627,-508.40025378,0.00023639,2]
[355058200,1740885038637,-640.82,0.00023639,2]
[355058201,1740885038647,-500.0,0.00023639,2]
[355058202,1740885038656,-438.23800319,0.00023639,2]
[355058203,1740885038666,-500.0,0.00023639,2]
[355058204,1740885038676,-918.66,0.00023639,2]
[355058205,1740885038686,-500.0,0.00023639,2]
[355058206,1740885038695,-1180.13,0.00023639,2]
[355058207,1740885038704,-979.74,0.00023639,2]
[355058208,1740885038715,-500.0,0.00023639,2]
[355058209,1740885038724,-500.0,0.00023639,2]
[355058210,1740885038734,-239.48300752,0.00023639,2]
[355058211,1740885038744,-500.99567565,0.00023639,2]
[355058212,1740885038754,-568.12034872,0.00023639,2]
[355058213,1740885038763,-500.0,0.00023639,2]
[355058214,1740885038773,-503.4,0.00023639,2]
[355058215,1740885038783,-500.0,0.00023639,2]
[355058216,1740885038792,-19665.27,0.00023639,2]
[355058217,1740885038802,-500.0,0.00023639,2]
[355058218,1740885038811,-500.0,0.00023639,2]
[355058219,1740885038821,-643.01145109,0.00023639,2]
[355058220,1740885038831,-500.0,0.00023639,2]
[355058221,1740885038841,-1315.84,0.00023639,2]
[355058222,1740885038850,-500.0,0.00023639,2]
[355058223,1740885038859,-500.0,0.00023639,2]
[355058224,1740885038869,-500.0,0.00023639,2]
[355058225,1740885038879,-500.0,0.00023639,2]
[355058226,1740885038892,-500.0,0.00023639,2]
[355058227,1740885038902,-500.0,0.00023639,2]
[355058228,1740885038912,-500.0,0.00023639,2]
[355058229,1740885038923,-1646.04,0.00023639,2]
[355058230,1740885038934,-13484.93,0.00023639,2]
[355058231,1740885038943,-8694.26,0.00023639,2]
[355058232,1740885038953,-500.0,0.00023639,2]
[355058233,1740885038963,-8022.97,0.00023639,2]
[355058234,1740885038973,-500.0,0.00023639,2]
[355058235,1740885038984,-500.0,0.00023639,2]
[355058236,1740885038994,-621.02,0.00023639,2]
[355058237,1740885039004,-500.0,0.00023639,2]
[355058238,1740885039013,-505.07685721,0.00023639,2]
[355058239,1740885039023,-500.0,0.00023639,2]
[355058240,1740885039032,-500.0,0.00023639,2]
[355058241,1740885039042,-1843.54,0.00023639,2]
[355058242,1740885039052,-500.0,0.00023639,2]
[355058243,1740885039062,-5186.8,0.00023639,2]
[355058244,1740885039072,-500.0,0.00023639,2]
[355058245,1740885039082,-500.0,0.00023639,2]
[355058246,1740885039092,-500.0,0.00023639,2]
[355058247,1740885039102,-500.0,0.00023639,2]
[355058248,1740885039111,-500.0,0.00023639,2]
[355058249,1740885039122,-500.0,0.00023639,2]
[355058250,1740885039132,-500.0,0.00023639,2]
[355058251,1740885039141,-500.0,0.00023639,2]
[355058252,1740885039152,-1328.81,0.00023639,2]
[355058253,1740885039162,-1809.29,0.00023639,2]
[355058254,1740885039173,-500.0,0.00023639,2]
[355058255,1740885039183,-957.76,0.00023639,2]
[355058256,1740885039193,-500.0,0.00023639,2]
[355058257,1740885039203,-503.90213071,0.00023639,2]
[355058258,1740885039213,-506.66156025,0.00023639,2]
[355058259,1740885039222,-500.0,0.00023639,2]
[355058260,1740885039232,-500.0,0.00023639,2]
[355058261,1740885039243,-500.0,0.00023639,2]
[355058262,1740885039252,-500.0,0.00023639,2]
[355058263,1740885039261,-509.16831827,0.00023639,2]
[355058264,1740885039271,-500.0,0.00023639,2]
[355058265,1740885039281,-500.0,0.00023639,2]
[355058266,1740885039291,-2218.12,0.00023639,2]
[355058267,1740885039301,-725.36,0.00023639,2]
[355058268,1740885039312,-3704.24,0.00023639,2]
[355058269,1740885039321,-500.0,0.00023639,2]
[355058270,1740885039330,-500.0,0.00023639,2]
[355058271,1740885039340,-2705.69,0.00023639,2]
[355058272,1740885039350,-903.97,0.00023639,2]
[355058273,1740885039359,-500.0,0.00023639,2]
[355058274,1740885039369,-3931.29,0.00023639,2]
[355058275,1740885039379,-500.0,0.00023639,2]
[355058276,1740885039389,-500.0,0.00023639,2]
[355058277,1740885039400,-500.0,0.00023639,2]
[355058278,1740885039410,-500.0,0.00023639,2]
[355058279,1740885039420,-500.0,0.00023639,2]
[355058280,1740885039430,-500.0,0.00023639,2]
[355058281,1740885039440,-1000.0,0.00023639,5]
[355058282,1740885039449,-1551.58,0.00023639,2]
[355058283,1740885039459,-500.0,0.00023639,2]
[355058284,1740885039468,-500.0,0.00023639,2]
[355058285,1740885039478,-1788.59,0.00023639,2]
[355058286,1740885039487,-500.0,0.00023639,2]
[355058287,1740885039497,-500.0,0.00023639,2]
[355058288,1740885039507,-500.0,0.00023639,2]
[355058289,1740885039516,-500.0,0.00023639,2]
[355058290,1740885039525,-500.0,0.00023639,2]
[355058291,1740885039535,-763.68,0.00023639,2]
[355058292,1740885039545,-649.84,0.00023639,2]
[355058293,1740885039556,-1181.25,0.00023639,2]
[355058294,1740885039565,-500.0,0.00023639,2]
[355058295,1740885039575,-500.0,0.00023639,2]
[355058296,1740885039585,-500.0,0.00023639,2]
[355058297,1740885039595,-16126.35,0.00023639,2]
[355058298,1740885039605,-500.0,0.00023639,2]
[355058299,1740885039615,-500.0,0.00023639,2]
[355058300,1740885039625,-347.2810555,0.00023639,2]
[355058301,1740885039635,-500.0,0.00023639,2]
[355058302,1740885039645,-500.0,0.00023639,2]
[355058303,1740885039655,-500.0,0.00023639,2]
[355058304,1740885039664,-500.0,0.00023639,2]
[355058305,1740885039676,-500.0,0.00023639,2]
[355058306,1740885039687,-406.76248546,0.00023639,2]
[355058307,1740885039696,-500.0,0.00023639,2]
[355058308,1740885039706,-502.43022774,0.00023639,2]
[355058309,1740885039716,-500.0,0.00023639,2]
[355058310,1740885039726,-3752.02,0.00023639,2]
[355058311,1740885039736,-500.0,0.00023639,2]
[355058312,1740885039746,-1703.45,0.00023639,2]
[355058313,1740885039756,-500.0,0.00023639,2]
[355058314,1740885039765,-500.0,0.00023639,2]
[355058315,1740885039775,-500.0,0.00023639,2]
[355058316,1740885039785,-500.0,0.00023639,2]
[355058317,1740885039795,-500.0,0.00023639,2]
[355058318,1740885039804,-501.05769558,0.00023639,2]
[355058319,1740885039814,-500.0,0.00023639,2]
[355058320,1740885039824,-518.13393297,0.00023639,2]
[355058321,1740885039833,-1305.73,0.00023639,2]
[355058322,1740885039856,-500.0,0.00023639,2]
[355058323,1740885039868,-7044.9,0.00023639,2]
[355058324,1740885039879,-500.0,0.00023639,2]
[355058325,1740885039893,-500.0,0.00023639,2]
[355058326,1740885039903,-500.0,0.00023639,2]
[355058327,1740885039913,-500.0,0.00023639,2]
[355058328,1740885039924,-500.0,0.00023639,2]
[355058329,1740885039936,-500.0,0.00023639,2]
[355058330,1740885039946,-621.56664829,0.00023639,2]
[355058331,1740885039957,-7151.03,0.00023639,2]
[355058332,1740885039967,-500.0,0.00023639,2]
[355058334,1740885039977,-500.0,0.00023639,2]
[355058335,1740885039987,-500.0,0.00023639,2]
[355058336,1740885039997,-500.0,0.00023639,2]
[355058337,1740885040007,-500.0,0.00023639,2]
[355058338,1740885040017,-500.0,0.00023639,2]
[355058339,1740885040027,-1247.05,0.00023639,2]
[355058340,1740885040037,-19144.31,0.00023639,2]
[355058341,1740885040047,-500.0,0.00023639,2]
[355058342,1740885040057,-500.0,0.00023639,2]
[355058343,1740885040067,-667.29,0.00023639,2]
[355058344,1740885040077,-500.0,0.00023639,2]
[355058345,1740885040087,-500.0,0.00023639,2]
[355058346,1740885040098,-500.0,0.00023639,2]
[355058347,1740885040109,-500.0,0.00023639,2]
[355058348,1740885040119,-500.0,0.00023639,2]
[355058349,1740885040128,-597.01868028,0.00023639,2]
[355058350,1740885040139,-500.0,0.00023639,2]
[355058351,1740885040149,-500.0,0.00023639,2]
[355058352,1740885040159,-500.0,0.00023639,2]
[355058353,1740885040169,-500.0,0.00023639,2]
[355058354,1740885040181,-500.0,0.00023639,2]
[355058355,1740885040191,-500.0,0.00023639,2]
[355058356,1740885040202,-500.0,0.00023639,2]
[355058357,1740885040214,-982.43,0.00023639,2]
[355058358,1740885040226,-1917.83,0.00023639,2]
[355058359,1740885040237,-500.0,0.00023639,2]
[355058360,1740885040248,-1363.5,0.00023639,2]
[355058361,1740885040260,-500.0,0.00023639,2]
[355058362,1740885040271,-500.0,0.00023639,2]
[355058363,1740885040283,-500.0,0.00023639,2]
[355058365,1740885040294,-500.65654974,0.00023639,2]
[355058367,1740885040305,-3865.73,0.00023639,2]
[355058369,1740885040316,-500.80943839,0.00023639,2]
[355058371,1740885040327,-503.26235767,0.00023639,2]
[355058372,1740885040339,-500.0,0.00023639,2]
[355058373,1740885040350,-500.0,0.00023639,2]
[355058374,1740885040361,-500.0,0.00023639,2]
[355058375,1740885040372,-500.0,0.00023639,2]
[355058376,1740885040383,-500.0,0.00023639,2]
[355058377,1740885040394,-500.0,0.00023639,2]
[355058378,1740885040404,-500.0,0.00023639,2]
[355058379,1740885040415,-500.0,0.00023639,2]
[355058380,1740885040427,-500.0,0.00023639,2]
[355058381,1740885040438,-500.0,0.00023639,2]
[355058382,1740885040448,-500.0,0.00023639,2]
[355058383,1740885040459,-500.0,0.00023639,2]
[355058384,1740885040470,-500.0,0.00023639,2]
[355058385,1740885040481,-500.0,0.00023639,2]
[355058387,1740885040492,-500.0,0.00023639,2]
[355058388,1740885040503,-962.89,0.00023639,2]
[355058389,1740885040514,-500.0,0.00023639,2]
[355058390,1740885040525,-500.0,0.00023639,2]
[355058391,1740885040536,-528.16,0.00023639,2]
[355058392,1740885040547,-500.0,0.00023639,2]
[355058393,1740885040558,-500.0,0.00023639,2]
[355058394,1740885040568,-500.0,0.00023639,2]
[355058395,1740885040579,-11577.29,0.00023639,2]
[355058396,1740885040590,-500.0,0.00023639,2]
[355058397,1740885040600,-500.0,0.00023639,2]
[355058398,1740885040611,-500.0,0.00023639,2]
[355058399,1740885040622,-500.0,0.00023639,2]
[355058400,1740885040632,-1921.96,0.00023639,2]
[355058401,1740885040644,-1698.91,0.00023639,2]
[355058402,1740885040655,-500.0,0.00023639,2]
[355058403,1740885040666,-500.98459388,0.00023639,2]
[355058404,1740885040677,-505.67558096,0.00023639,2]
[355058405,1740885040688,-500.0,0.00023639,2]
[355058406,1740885040699,-508.76704438,0.00023639,2]
[355058407,1740885040709,-500.0,0.00023639,2]
[355058408,1740885040720,-501.89301672,0.00023639,2]
[355058409,1740885040731,-500.0,0.00023639,2]
[355058410,1740885040742,-607.83,0.00023639,2]
[355058411,1740885040753,-237849.67,0.00023639,2]
[355058412,1740885040764,-500.0,0.00023639,2]
[355058413,1740885040775,-500.0,0.00023639,2]
[355058414,1740885040786,-500.0,0.00023639,2]
[355058415,1740885040796,-500.0,0.00023639,2]
[355058416,1740885040807,-505.26828346,0.00023639,2]
[355058417,1740885040818,-662.39,0.00023639,2]
[355058418,1740885040828,-3275.34,0.00023639,2]
[355058419,1740885040839,-222000.0,0.0002364,2]
[355058420,1740885040849,-184.89,0.000237,7]
[355058421,1740885040860,-593.44,0.00023739,2]
[355058422,1740885040870,-500.0,0.00023739,2]
[355058423,1740885040882,-1189.6,0.00023739,2]
[355058424,1740885040895,-500.0,0.00023739,2]
[355058425,1740885040906,-514.26244761,0.00023739,2]
[355058426,1740885040917,-500.0,0.00023739,2]
[355058427,1740885040929,-500.0,0.00023739,2]
[355058428,1740885040939,-500.0,0.00023739,2]
[355058429,1740885040950,-343.67365642,0.00023739,2]
[355058430,1740885040961,-509.49551539,0.00023739,2]
[355058431,1740885040972,-2706.92,0.00023739,2]
[355058432,1740885040982,-1355.32,0.00023739,2]
[355058433,1740885040992,-500.0,0.00023739,2]
[355058434,1740885041003,-500.0,0.00023913,2]
[355058435,1740885041014,-766.13,0.00023913,2]
[355058436,1740885041025,-500.0,0.00023913,2]
[355058437,1740885041036,-1182.78,0.00023913,2]
[355058438,1740885041048,-500.0,0.00023913,2]
[355058439,1740885041058,-500.0,0.00023913,2]
[355058440,1740885041069,-501.94965314,0.00023913,2]
[355058441,1740885041080,-640.82,0.00023913,2]
[355058442,1740885041091,-500.0,0.00023913,2]
[355058443,1740885041102,-500.0,0.00023913,2]
[355058444,1740885041112,-918.66,0.00023913,2]
[355058445,1740885041123,-500.0,0.00023913,2]
[355058446,1740885041134,-1180.13,0.00023913,2]
[355058447,1740885041145,-979.74,0.00023913,2]
[355058448,1740885041156,-500.0,0.00023913,2]
[355058449,1740885041167,-500.0,0.00023913,2]
[355058450,1740885041179,-500.0,0.00023913,2]
[355058451,1740885041190,-503.4,0.00023913,2]
[355058452,1740885041201,-500.0,0.00023913,2]
[355058453,1740885041211,-500.0,0.00023913,2]
[355058454,1740885041222,-19665.27,0.00023913,2]
[355058455,1740885041233,-500.0,0.00023913,2]
[355058456,1740885041244,-500.0,0.00023913,2]
[355058457,1740885041254,-1315.84,0.00023913,2]
[355058458,1740885041265,-500.0,0.00023913,2]
[355058459,1740885041275,-502.61872391,0.00023913,2]
[355058460,1740885041286,-500.0,0.00023913,2]
[355058461,1740885041297,-500.0,0.00023913,2]
[355058462,1740885041307,-500.0,0.00023913,2]
[355058463,1740885041318,-500.0,0.00023913,2]
[355058464,1740885041328,-1646.04,0.00023913,2]
[355058465,1740885041339,-13484.93,0.00023913,2]
[355058466,1740885041349,-8694.26,0.00023913,2]
[355058467,1740885041365,-500.0,0.00023913,2]
[355058468,1740885041376,-8022.97,0.00023913,2]
[355058469,1740885041387,-500.0,0.00023913,2]
[355058470,1740885041397,-506.46626883,0.00023913,2]
[355058471,1740885041408,-621.02,0.00023913,2]
[355058472,1740885041418,-500.0,0.00023913,2]
[355058473,1740885041429,-500.0,0.00023913,2]
[355058474,1740885041440,-500.0,0.00023913,2]
[355058475,1740885041450,-1843.54,0.00023913,2]
[355058476,1740885041460,-500.0,0.00023913,2]
[355058477,1740885041470,-5186.8,0.00023913,2]
[355058478,1740885041481,-500.0,0.00023913,2]
[355058479,1740885041492,-500.0,0.00023913,2]
[355058480,1740885041503,-500.0,0.00023913,2]
[355058481,1740885041514,-500.0,0.00023913,2]
[355058482,1740885041525,-500.0,0.00023913,2]
[355058483,1740885041536,-500.0,0.00023913,2]
[355058484,1740885041546,-500.0,0.00023913,2]
[355058485,1740885041557,-1328.81,0.00023913,2]
[355058486,1740885041568,-1809.29,0.00023913,2]
[355058487,1740885041578,-349.53936723,0.00023913,2]
[355058488,1740885041597,-957.76,0.00023913,2]
[355058489,1740885041608,-258.99446986,0.00023913,2]
[355058490,1740885041619,-500.0,0.00023913,2]
[355058491,1740885041631,-500.0,0.00023913,2]
[355058492,1740885041642,-500.0,0.00023913,2]
[355058493,1740885041653,-406.27684357,0.00023913,2]
[355058494,1740885041665,-500.0,0.00023913,2]
[355058495,1740885041676,-2218.12,0.00023913,2]
[355058496,1740885041687,-725.36,0.00023913,2]
[355058497,1740885041698,-3704.24,0.00023913,2]
[355058498,1740885041709,-500.0,0.00023913,2]
[355058499,1740885041720,-500.0,0.00023913,2]
[355058500,1740885041731,-2705.69,0.00023913,2]
[355058501,1740885041742,-903.97,0.00023913,2]
[355058502,1740885041753,-500.0,0.00023913,2]
[355058503,1740885041764,-3931.29,0.00023913,2]
[355058504,1740885041774,-501.34828217,0.00023913,2]
[355058505,1740885041785,-500.0,0.00023913,2]
[355058506,1740885041795,-500.0,0.00023913,2]
[355058507,1740885041806,-500.0,0.00023913,2]
[355058508,1740885041817,-500.0,0.00023913,2]
[355058509,1740885041827,-500.0,0.00023913,2]
[355058510,1740885041838,-376.29,0.00023913,5]
[355058511,1740885041849,-1551.58,0.00023913,2]
[355058512,1740885041859,-193.81118001,0.00023913,2]
[355058513,1740885041870,-500.0,0.00023913,2]
[355058514,1740885041883,-1788.59,0.00023913,2]
[355058515,1740885041896,-501.26657096,0.00023913,2]
[355058516,1740885041906,-500.0,0.00023913,2]
[355058517,1740885041918,-500.0,0.00023913,2]
[355058518,1740885041930,-500.0,0.00023913,2]
[355058519,1740885041942,-500.0,0.00023913,2]
[355058520,1740885041952,-763.68,0.00023913,2]
[355058521,1740885041965,-649.84,0.00023913,2]
[355058522,1740885041977,-1181.25,0.00023913,2]
[355058523,1740885041988,-583.69964488,0.00023913,2]
[355058524,1740885041999,-500.0,0.00023913,2]
[355058525,1740885042010,-16126.35,0.00023913,2]
[355058526,1740885042021,-500.0,0.00023913,2]
[355058527,1740885042032,-355.05669421,0.00023913,2]
[355058528,1740885042043,-417.40128733,0.00023913,2]
[355058530,1740885042055,-500.0,0.00023913,2]
[355058532,1740885042066,-500.0,0.00023913,2]
[355058534,1740885042077,-500.0,0.00023913,2]
[355058537,1740885042088,-500.0,0.00023913,2]
[355058539,1740885042100,-503.04882339,0.00023913,2]
[355058540,1740885042111,-3752.02,0.00023913,2]
[355058541,1740885042122,-500.0,0.00023913,2]
[355058542,1740885042133,-150.94574009,0.00023913,2]
[355058543,1740885042144,-1703.45,0.00023913,2]
[355058544,1740885042155,-500.0,0.00023913,2]
[355058545,1740885042166,-500.0,0.00023913,2]
[355058546,1740885042176,-500.0,0.00023913,2]
[355058547,1740885042187,-545.85491778,0.00023913,2]
[355058548,1740885042199,-500.0,0.00023913,2]
[355058549,1740885042211,-500.0,0.00023913,2]
[355058550,1740885042222,-1305.73,0.00023913,2]
[355058551,1740885042233,-500.0,0.00023913,2]
[355058552,1740885042245,-7044.9,0.00023913,2]
[355058553,1740885042255,-500.0,0.00023913,2]
[355058555,1740885042267,-500.0,0.00023913,2]
[355058556,1740885042278,-500.0,0.00023913,2]
[355058557,1740885042288,-500.0,0.00023913,2]
[355058558,1740885042299,-500.0,0.00023913,2]
[355058559,1740885042310,-500.0,0.00023913,2]
[355058560,1740885042322,-7151.03,0.00023913,2]
[355058561,1740885042332,-500.0,0.00023913,2]
[355058562,1740885042343,-500.0,0.00023913,2]
[355058563,1740885042354,-296.5625281,0.00023913,2]
[355058564,1740885042365,-500.0,0.00023913,2]
[355058565,1740885042375,-500.0,0.00023913,2]
[355058566,1740885042385,-500.0,0.00023913,2]
[355058567,1740885042395,-1247.05,0.00023913,2]
[355058568,1740885042406,-19144.31,0.00023913,2]
[355058569,1740885042417,-500.0,0.00023913,2]
[355058570,1740885042427,-500.0,0.00023913,2]
[355058571,1740885042438,-667.29,0.00023913,2]
[355058572,1740885042448,-500.0,0.00023913,2]
[355058573,1740885042458,-500.0,0.00023913,2]
[355058574,1740885042469,-500.0,0.00023913,2]
[355058575,1740885042480,-500.0,0.00023913,2]
[355058576,1740885042490,-500.0,0.00023913,2]
[355058577,1740885042500,-500.0,0.00023913,2]
[355058578,1740885042511,-500.0,0.00023913,2]
[355058579,1740885042521,-500.0,0.00023913,2]
[355058580,1740885042532,-500.0,0.00023913,2]
[355058581,1740885042542,-500.0,0.00023913,2]
[355058582,1740885042552,-982.43,0.00023913,2]
[355058583,1740885042563,-1917.83,0.00023913,2]
[355058584,1740885042573,-500.0,0.00023913,2]
[355058585,1740885042583,-1363.5,0.00023913,2]
[355058586,1740885042594,-500.0,0.00023913,2]
[355058587,1740885042604,-500.0,0.00023913,2]
[355058588,1740885042615,-511.60835268,0.00023913,2]
[355058589,1740885042625,-3865.73,0.00023913,2]
[355058590,1740885042635,-500.0,0.00023913,2]
[355058591,1740885042646,-504.92664875,0.00023913,2]
[355058592,1740885042657,-500.0,0.00023913,2]
[355058593,1740885042667,-500.0,0.00023913,2]
[355058594,1740885042679,-503.13589269,0.00023913,2]
[355058595,1740885042690,-500.0,0.00023913,2]
[355058596,1740885042701,-500.0,0.00023913,2]
[355058597,1740885042712,-500.0,0.00023913,2]
[355058598,1740885042723,-500.0,0.00023913,2]
[355058599,1740885042733,-500.0,0.00023913,2]
[355058600,1740885042744,-500.0,0.00023913,2]
[355058601,1740885042755,-500.0,0.00023913,2]
[355058602,1740885042766,-500.0,0.00023913,2]
[355058603,1740885042777,-962.89,0.00023913,2]
[355058605,1740885042788,-500.0,0.00023913,2]
[355058606,1740885042799,-500.0,0.00023913,2]
[355058607,1740885042811,-528.16,0.00023913,2]
[355058608,1740885042824,-500.0,0.00023913,2]
[355058634,1740885043101,-500.0,0.00023913,2]
[355058636,1740885043112,-500.0,0.00023913,2]
[355058638,1740885043123,-11577.29,0.00023913,2]
[355058640,1740885043133,-384.38228529,0.00023913,2]
[355058642,1740885043143,-500.0,0.00023913,2]
[355058644,1740885043153,-507.23834086,0.00023913,2]
[355058646,1740885043167,-1921.96,0.00023913,2]
[355058648,1740885043183,-500.0,0.00023913,2]
[355058650,1740885043193,-1698.91,0.00023913,2]
[355058652,1740885043203,-454.21199356,0.00023913,2]
[355058654,1740885043213,-500.0,0.00023913,2]
[355058657,1740885043223,-500.0,0.00023913,2]
[355058660,1740885043234,-607.83,0.00023913,2]
[355058663,1740885043244,-237849.67,0.00023913,2]
[355058666,1740885043254,-500.0,0.00023913,2]
[355058669,1740885043263,-293.01822687,0.00023913,2]
[355058672,1740885043273,-500.0,0.00023913,2]
[355058675,1740885043283,-500.0,0.00023913,2]
[355058678,1740885043293,-662.39,0.00023913,2]
[355058680,1740885043303,-160.03203287,0.0002394,2]
[355058682,1740885043312,-500.52565708,0.0002394,2]
[355058684,1740885043324,-160.03203288,0.0002394,2]
[355058686,1740885043334,-160.03203288,0.0002394,2]
[355058688,1740885043343,-160.03203288,0.0002394,2]
[355058691,1740885043353,-401.95150697,0.0002394,2]
[355058694,1740885043363,-326.89472636,0.0002394,2]
[355058697,1740885043373,-500.0,0.0002394,2]
[355058700,1740885043383,-500.0,0.0002394,2]
[355058702,1740885043393,-41188.66501567,0.00024,2]
[355058705,1740885043403,-593.44,0.00024013,2]
[355058708,1740885043412,-500.0,0.00024013,2]
[355058711,1740885043422,-1189.6,0.00024013,2]
[355058715,1740885043434,-500.0,0.00024013,2]
[355058718,1740885043443,-500.0,0.00024013,2]
[355058721,1740885043453,-500.0,0.00024013,2]
[355058724,1740885043462,-500.0,0.00024013,2]
[355058727,1740885043471,-2706.92,0.00024013,2]
[355058729,1740885043482,-1355.32,0.00024013,2]
[355058734,1740885043492,-500.0,0.00024013,2]
[355058737,1740885043502,-1034.54,0.00024109,2]
[355058740,1740885043515,-1034.54,0.00024109,2]
[355058743,1740885043524,-581.1039903,0.00024114,2]
[355058746,1740885043534,-500.0,0.00024187,2]
[355058749,1740885043546,-766.13,0.00024187,2]
[355058752,1740885043555,-500.0,0.00024187,2]
[355058755,1740885043565,-1182.78,0.00024187,2]
[355058758,1740885043574,-500.0,0.00024187,2]
[355058761,1740885043584,-500.0,0.00024187,2]
[355058763,1740885043595,-640.82,0.00024187,2]
[355058765,1740885043605,-611.77345001,0.00024187,2]
[355058768,1740885043615,-582.75594164,0.00024187,2]
[355058770,1740885043626,-918.66,0.00024187,2]
[355058772,1740885043636,-500.0,0.00024187,2]
[355058773,1740885043646,-1180.13,0.00024187,2]
[355058774,1740885043656,-979.74,0.00024187,2]
[355058775,1740885043666,-500.0,0.00024187,2]
[355058776,1740885043678,-500.0,0.00024187,2]
[355058777,1740885043688,-500.0,0.00024187,2]
[355058778,1740885043698,-503.4,0.00024187,2]
[355058779,1740885043708,-500.0,0.00024187,2]
[355058780,1740885043718,-500.0,0.00024187,2]
[355058781,1740885043728,-19665.27,0.00024187,2]
[355058782,1740885043738,-500.0,0.00024187,2]
[355058783,1740885043748,-500.0,0.00024187,2]
[355058784,1740885043758,-1315.84,0.00024187,2]
[355058785,1740885043767,-500.0,0.00024187,2]
[355058786,1740885043777,-500.0,0.00024187,2]
[355058787,1740885043787,-500.0,0.00024187,2]
[355058788,1740885043797,-500.0,0.00024187,2]
[355058789,1740885043807,-500.0,0.00024187,2]
[355058790,1740885043817,-1646.04,0.00024187,2]
[355058791,1740885043827,-13484.93,0.00024187,2]
[355058792,1740885043836,-8694.26,0.00024187,2]
[355058793,1740885043846,-500.0,0.00024187,2]